[Event "Titled Tuesday Blitz July 25 Early 2023"]
[White "Oleksiyenko, Mykhaylo"]
[Black "Pasti, Aron"]
[WhiteFideId "4152417"]
[BlackFideId "785857"]
[WhiteElo "2652"]
[BlackElo "2461"]
[Result "1-0"]
[Round "5"]
[TimeControl "180+2"]
[Date "2023.07.25"]
[WhiteClock "0:01:52"]
[BlackClock "0:01:38"]
[Board "98"]

1. e4 {[%clk 0:03:00]}  e5 {[%clk 0:02:59]} 2. Nf3 {[%clk 0:02:58]}  Nc6 {[%clk 0:02:59]} 3. Bb5 {[%clk 0:02:58]}  a6 {[%clk 0:02:59]} 4. Bxc6 {[%clk 0:02:58]}  dxc6 {[%clk 0:03:00]} 5. O-O {[%clk 0:02:59]}  Bg4 {[%clk 0:03:00]} 6. h3 {[%clk 0:02:59]}  h5 {[%clk 0:03:00]} 7. d3 {[%clk 0:02:59]}  Qf6 {[%clk 0:02:59]} 8. Nbd2 {[%clk 0:03:00]}  Ne7 {[%clk 0:02:58]} 9. Nc4 {[%clk 0:02:59]}  Ng6 {[%clk 0:02:55]} 10. hxg4 {[%clk 0:02:59]}  hxg4 {[%clk 0:02:54]} 11. Bg5 {[%clk 0:02:44]}  Qe6 {[%clk 0:02:42]} 12. Nh2 {[%clk 0:02:43]}  Rh5 {[%clk 0:02:30]} 13. Be3 {[%clk 0:02:25]}  b5 {[%clk 0:02:15]} 14. Nd2 {[%clk 0:02:24]}  Rh4 {[%clk 0:02:13]} 15. g3 {[%clk 0:02:18]}  Rh8 {[%clk 0:02:12]} 16. Qxg4 {[%clk 0:02:17]}  Qf6 {[%clk 0:02:05]} 17. Bg5 {[%clk 0:02:07]}  Qd6 {[%clk 0:02:03]} 18. Qf5 {[%clk 0:02:03]}  Be7 {[%clk 0:01:59]} 19. Nhf3 {[%clk 0:01:55]}  Rh5 {[%clk 0:01:50]} 20. Bxe7 {[%clk 0:01:53]}  Kxe7 {[%clk 0:01:40]} 21. Qxh5 {[%clk 0:01:52]}  Rh8 {[%clk 0:01:38]} 22. Qg5+ {[%clk 0:01:52]} 1-0


[Site "https://www.chess.com"]

[Event "Titled Tuesday Blitz July 25 Early 2023"]
[White "Seemann, Jakub"]
[Black "Tanmay Jain"]
[WhiteFideId "21874697"]
[BlackFideId "45015481"]
[WhiteElo "2650"]
[BlackElo "2456"]
[Result "1-0"]
[Round "5"]
[TimeControl "180+2"]
[Date "2023.07.25"]
[WhiteClock "0:02:01"]
[BlackClock "0:00:00"]
[Board "100"]

1. g3 {[%clk 0:03:00]}  d5 {[%clk 0:02:59]} 2. Bg2 {[%clk 0:03:00]}  Nf6 {[%clk 0:03:00]} 3. Nf3 {[%clk 0:02:59]}  e6 {[%clk 0:03:00]} 4. O-O {[%clk 0:02:59]}  Be7 {[%clk 0:03:01]} 5. b3 {[%clk 0:03:00]}  O-O {[%clk 0:03:02]} 6. Bb2 {[%clk 0:03:00]}  b6 {[%clk 0:03:02]} 7. c4 {[%clk 0:03:01]}  Bb7 {[%clk 0:03:03]} 8. cxd5 {[%clk 0:03:01]}  exd5 {[%clk 0:03:04]} 9. Nc3 {[%clk 0:02:56]}  c5 {[%clk 0:03:04]} 10. e3 {[%clk 0:02:56]}  Ne4 {[%clk 0:02:53]} 11. Ne2 {[%clk 0:02:55]}  Nc6 {[%clk 0:02:51]} 12. d3 {[%clk 0:02:55]}  Nf6 {[%clk 0:02:39]} 13. Nf4 {[%clk 0:02:56]}  Qd7 {[%clk 0:02:22]} 14. d4 {[%clk 0:02:55]}  cxd4 {[%clk 0:02:16]} 15. Nxd4 {[%clk 0:02:55]}  Nxd4 {[%clk 0:02:14]} 16. Bxd4 {[%clk 0:02:53]}  Rad8 {[%clk 0:02:13]} 17. Nh5 {[%clk 0:02:44]}  Qd6 {[%clk 0:02:01]} 18. Rc1 {[%clk 0:02:37]}  Rc8 {[%clk 0:01:14]} 19. Nxf6+ {[%clk 0:02:32]}  Bxf6 {[%clk 0:01:14]} 20. Qd2 {[%clk 0:02:32]}  Bxd4 {[%clk 0:01:05]} 21. Qxd4 {[%clk 0:02:32]}  Rc5 {[%clk 0:01:05]} 22. b4 {[%clk 0:02:29]}  Rxc1 {[%clk 0:01:02]} 23. Rxc1 {[%clk 0:02:30]}  h6 {[%clk 0:01:02]} 24. a3 {[%clk 0:02:30]}  Rd8 {[%clk 0:00:59]} 25. h4 {[%clk 0:02:28]}  Qe7 {[%clk 0:00:57]} 26. Qf4 {[%clk 0:02:26]}  Rd7 {[%clk 0:00:50]} 27. Qb8+ {[%clk 0:02:25]}  Kh7 {[%clk 0:00:50]} 28. Qf4 {[%clk 0:02:11]}  a5 {[%clk 0:00:30]} 29. Bh3 {[%clk 0:02:10]}  d4 {[%clk 0:00:05]} 30. Bxd7 {[%clk 0:02:06]}  Qxd7 {[%clk 0:00:04]} 31. Rc7 {[%clk 0:02:01]}  Qd5 {[%clk 0:00:00]} 32. e4 {[%clk 0:02:01]} 1-0


[Site "https://www.chess.com"]

[Event "Titled Tuesday Blitz July 25 Early 2023"]
[White "Iskusnyh, Sergei"]
[Black "Liu, Casper"]
[WhiteFideId "4120027"]
[BlackFideId "1454153"]
[WhiteElo "2629"]
[BlackElo "2452"]
[Result "0-1"]
[Round "5"]
[TimeControl "180+2"]
[Date "2023.07.25"]
[WhiteClock "0:00:02"]
[BlackClock "0:00:13"]
[Board "101"]

1. d4 {[%clk 0:03:00]}  Nf6 {[%clk 0:02:54]} 2. c4 {[%clk 0:03:00]}  g6 {[%clk 0:02:55]} 3. g3 {[%clk 0:02:59]}  Bg7 {[%clk 0:02:55]} 4. Bg2 {[%clk 0:03:00]}  O-O {[%clk 0:02:56]} 5. Nc3 {[%clk 0:03:00]}  c5 {[%clk 0:02:56]} 6. dxc5 {[%clk 0:02:57]}  Na6 {[%clk 0:02:56]} 7. Nh3 {[%clk 0:02:49]}  Nxc5 {[%clk 0:02:56]} 8. O-O {[%clk 0:02:49]}  d6 {[%clk 0:02:55]} 9. Nf4 {[%clk 0:02:48]}  a6 {[%clk 0:02:44]} 10. Bd2 {[%clk 0:02:42]}  Nfd7 {[%clk 0:02:44]} 11. Rc1 {[%clk 0:02:33]}  Ne5 {[%clk 0:02:34]} 12. b4 {[%clk 0:02:22]}  Ne6 {[%clk 0:02:31]} 13. Ncd5 {[%clk 0:02:20]}  Nxf4 {[%clk 0:02:30]} 14. gxf4 {[%clk 0:02:05]}  Nc6 {[%clk 0:02:12]} 15. c5 {[%clk 0:01:56]}  dxc5 {[%clk 0:02:03]} 16. bxc5 {[%clk 0:01:55]}  Be6 {[%clk 0:02:00]} 17. Nb6 {[%clk 0:01:50]}  Rb8 {[%clk 0:02:01]} 18. a3 {[%clk 0:01:30]}  Nd4 {[%clk 0:01:37]} 19. Bc3 {[%clk 0:00:37]}  Nb3 {[%clk 0:01:03]} 20. Rc2 {[%clk 0:00:16]}  Qc7 {[%clk 0:00:19]} 21. Bxg7 {[%clk 0:00:15]}  Kxg7 {[%clk 0:00:20]} 22. Qd3 {[%clk 0:00:13]}  Rfd8 {[%clk 0:00:20]} 23. Qxb3 {[%clk 0:00:13]}  Bxb3 {[%clk 0:00:19]} 24. Rc3 {[%clk 0:00:10]}  Be6 {[%clk 0:00:18]} 25. Rfc1 {[%clk 0:00:09]}  Rd2 {[%clk 0:00:18]} 26. Bf3 {[%clk 0:00:09]}  Rbd8 {[%clk 0:00:18]} 27. Kg2 {[%clk 0:00:08]}  h5 {[%clk 0:00:17]} 28. Re3 {[%clk 0:00:06]}  Qxf4 {[%clk 0:00:17]} 29. Bxb7 {[%clk 0:00:05]}  Qg4+ {[%clk 0:00:15]} 30. Kf1 {[%clk 0:00:03]}  R8d4 {[%clk 0:00:13]} 31. f3 {[%clk 0:00:01]}  Rd1+ {[%clk 0:00:13]} 32. Kf2 {[%clk 0:00:02]}  Qg1# {[%clk 0:00:13]} 0-1


[Site "https://www.chess.com"]

[Event "Titled Tuesday Blitz July 25 Early 2023"]
[White "Khusenkhojaev, Muhammad"]
[Black "Avazkhonov, Alikhon"]
[WhiteFideId "14700247"]
[BlackFideId "14208504"]
[WhiteElo "2615"]
[BlackElo "2451"]
[Result "1-0"]
[Round "5"]
[TimeControl "180+2"]
[Date "2023.07.25"]
[WhiteClock "0:01:58"]
[BlackClock "0:00:43"]
[Board "103"]

1. e4 {[%clk 0:03:00]}  c5 {[%clk 0:02:32]} 2. Nf3 {[%clk 0:02:59]}  d6 {[%clk 0:02:23]} 3. d4 {[%clk 0:02:59]}  cxd4 {[%clk 0:02:21]} 4. Nxd4 {[%clk 0:03:00]}  Nf6 {[%clk 0:02:21]} 5. Nc3 {[%clk 0:03:00]}  a6 {[%clk 0:02:21]} 6. Bg5 {[%clk 0:02:58]}  e6 {[%clk 0:02:21]} 7. f4 {[%clk 0:02:58]}  h6 {[%clk 0:02:22]} 8. Bh4 {[%clk 0:02:57]}  Be7 {[%clk 0:02:22]} 9. Qf3 {[%clk 0:02:56]}  Qc7 {[%clk 0:02:19]} 10. O-O-O {[%clk 0:02:55]}  Nbd7 {[%clk 0:02:20]} 11. Bd3 {[%clk 0:02:44]}  g5 {[%clk 0:02:20]} 12. fxg5 {[%clk 0:02:42]}  Ne5 {[%clk 0:02:14]} 13. Qe2 {[%clk 0:02:41]}  Nfg4 {[%clk 0:02:13]} 14. Nf3 {[%clk 0:02:40]}  Nxf3 {[%clk 0:02:14]} 15. gxf3 {[%clk 0:02:39]}  hxg5 {[%clk 0:02:13]} 16. Bg3 {[%clk 0:02:37]}  Ne5 {[%clk 0:02:14]} 17. Kb1 {[%clk 0:02:31]}  Bd7 {[%clk 0:02:07]} 18. Qf2 {[%clk 0:02:01]}  O-O-O {[%clk 0:01:46]} 19. Be2 {[%clk 0:02:01]}  Kb8 {[%clk 0:01:40]} 20. h4 {[%clk 0:01:58]}  gxh4 {[%clk 0:01:38]} 21. Bxh4 {[%clk 0:01:58]}  Bxh4 {[%clk 0:01:12]} 22. Rxh4 {[%clk 0:01:59]}  Qc5 {[%clk 0:01:12]} 23. Qxc5 {[%clk 0:01:56]}  dxc5 {[%clk 0:01:12]} 24. Rxh8 {[%clk 0:01:57]}  Rxh8 {[%clk 0:00:43]} 25. f4 {[%clk 0:01:58]} 1-0


[Site "https://www.chess.com"]

[Event "Titled Tuesday Blitz July 25 Early 2023"]
[White "whiteglovethief"]
[Black "Ganiev, Roman"]
[BlackFideId "4131452"]
[WhiteElo "2451"]
[BlackElo "2615"]
[Result "1-0"]
[Round "5"]
[TimeControl "180+2"]
[Date "2023.07.25"]
[WhiteClock "0:00:18"]
[BlackClock "0:00:04"]
[Board "104"]

1. d4 {[%clk 0:03:00]}  Nf6 {[%clk 0:02:59]} 2. c4 {[%clk 0:03:00]}  e6 {[%clk 0:03:00]} 3. Nf3 {[%clk 0:02:59]}  b6 {[%clk 0:03:00]} 4. a3 {[%clk 0:02:59]}  Bb7 {[%clk 0:03:00]} 5. Nc3 {[%clk 0:02:59]}  d5 {[%clk 0:03:00]} 6. cxd5 {[%clk 0:03:00]}  Nxd5 {[%clk 0:03:01]} 7. Qc2 {[%clk 0:03:01]}  Be7 {[%clk 0:03:00]} 8. e4 {[%clk 0:03:01]}  Nxc3 {[%clk 0:03:00]} 9. bxc3 {[%clk 0:03:02]}  O-O {[%clk 0:02:58]} 10. Bd3 {[%clk 0:03:02]}  c5 {[%clk 0:02:58]} 11. O-O {[%clk 0:03:02]}  cxd4 {[%clk 0:02:56]} 12. cxd4 {[%clk 0:03:03]}  Nc6 {[%clk 0:02:53]} 13. Be3 {[%clk 0:02:59]}  Rc8 {[%clk 0:02:49]} 14. Qe2 {[%clk 0:02:58]}  Na5 {[%clk 0:02:44]} 15. Rfd1 {[%clk 0:02:47]}  Bf6 {[%clk 0:02:42]} 16. Rab1 {[%clk 0:02:37]}  Be7 {[%clk 0:02:36]} 17. a4 {[%clk 0:02:35]}  Qc7 {[%clk 0:02:32]} 18. d5 {[%clk 0:02:33]}  exd5 {[%clk 0:01:56]} 19. exd5 {[%clk 0:02:34]}  h6 {[%clk 0:01:57]} 20. Ba6 {[%clk 0:02:24]}  Bd6 {[%clk 0:01:50]} 21. Bxb7 {[%clk 0:02:20]}  Qxb7 {[%clk 0:01:50]} 22. Nh4 {[%clk 0:02:14]}  Qd7 {[%clk 0:01:41]} 23. Qf3 {[%clk 0:02:11]}  Rfe8 {[%clk 0:01:01]} 24. Nf5 {[%clk 0:02:10]}  Bf8 {[%clk 0:01:01]} 25. Qg4 {[%clk 0:02:09]}  Kh7 {[%clk 0:00:53]} 26. Nxh6 {[%clk 0:02:02]}  Qxg4 {[%clk 0:00:49]} 27. Nxg4 {[%clk 0:02:02]}  Rc4 {[%clk 0:00:50]} 28. h3 {[%clk 0:01:58]}  f5 {[%clk 0:00:42]} 29. Nh2 {[%clk 0:01:54]}  Rxa4 {[%clk 0:00:38]} 30. Nf3 {[%clk 0:01:54]}  f4 {[%clk 0:00:32]} 31. Bd4 {[%clk 0:01:49]}  Nc4 {[%clk 0:00:31]} 32. Bc3 {[%clk 0:01:43]}  Kg6 {[%clk 0:00:27]} 33. Nd4 {[%clk 0:01:31]}  Nd6 {[%clk 0:00:18]} 34. Nc6 {[%clk 0:01:28]}  Rc4 {[%clk 0:00:17]} 35. Bb4 {[%clk 0:01:24]}  Ra8 {[%clk 0:00:11]} 36. Ne5+ {[%clk 0:01:22]}  Kf5 {[%clk 0:00:11]} 37. Nxc4 {[%clk 0:01:22]}  Nxc4 {[%clk 0:00:11]} 38. Bxf8 {[%clk 0:01:22]}  Rxf8 {[%clk 0:00:12]} 39. d6 {[%clk 0:01:21]}  Rd8 {[%clk 0:00:12]} 40. Rb4 {[%clk 0:01:14]}  Nxd6 {[%clk 0:00:11]} 41. Rbd4 {[%clk 0:01:15]}  Ke5 {[%clk 0:00:10]} 42. Rd5+ {[%clk 0:01:13]}  Ke6 {[%clk 0:00:11]} 43. Rg5 {[%clk 0:01:12]}  Rd7 {[%clk 0:00:10]} 44. Rg6+ {[%clk 0:01:09]}  Ke5 {[%clk 0:00:11]} 45. g4 {[%clk 0:00:58]}  fxg3 {[%clk 0:00:12]} 46. fxg3 {[%clk 0:00:58]}  a5 {[%clk 0:00:12]} 47. g4 {[%clk 0:00:53]}  a4 {[%clk 0:00:12]} 48. Rg5+ {[%clk 0:00:44]}  Ke4 {[%clk 0:00:11]} 49. Rgd5 {[%clk 0:00:42]}  a3 {[%clk 0:00:06]} 50. R5d3 {[%clk 0:00:34]}  b5 {[%clk 0:00:01]} 51. Rb3 {[%clk 0:00:32]}  b4 {[%clk 0:00:01]} 52. Rxb4+ {[%clk 0:00:32]}  Ke3 {[%clk 0:00:02]} 53. Rb3+ {[%clk 0:00:32]}  Ke2 {[%clk 0:00:02]} 54. Rd5 {[%clk 0:00:31]}  Ra7 {[%clk 0:00:03]} 55. Rxa3 {[%clk 0:00:25]}  Rxa3 {[%clk 0:00:04]} 56. Rxd6 {[%clk 0:00:25]}  Rxh3 {[%clk 0:00:04]} 57. Kg2 {[%clk 0:00:23]}  Rh7 {[%clk 0:00:04]} 58. Re6+ {[%clk 0:00:23]}  Kd3 {[%clk 0:00:04]} 59. Re7 {[%clk 0:00:23]}  Kd4 {[%clk 0:00:03]} 60. Kg3 {[%clk 0:00:23]}  Kd5 {[%clk 0:00:04]} 61. Kf4 {[%clk 0:00:24]}  Kd6 {[%clk 0:00:04]} 62. Re1 {[%clk 0:00:22]}  Rh2 {[%clk 0:00:04]} 63. Kf5 {[%clk 0:00:22]}  Rf2+ {[%clk 0:00:03]} 64. Kg6 {[%clk 0:00:21]}  Rg2 {[%clk 0:00:03]} 65. g5 {[%clk 0:00:21]}  Kd5 {[%clk 0:00:03]} 66. Re7 {[%clk 0:00:21]}  Kd6 {[%clk 0:00:03]} 67. Rxg7 {[%clk 0:00:21]}  Ke6 {[%clk 0:00:04]} 68. Rg8 {[%clk 0:00:19]}  Rg1 {[%clk 0:00:05]} 69. Re8+ {[%clk 0:00:19]}  Kd7 {[%clk 0:00:05]} 70. Re2 {[%clk 0:00:20]}  Rg2 {[%clk 0:00:04]} 71. Rxg2 {[%clk 0:00:18]} 1-0


[Site "https://www.chess.com"]

[Event "Titled Tuesday Blitz July 25 Early 2023"]
[White "Parpiev, Isaak"]
[Black "Yashmetov, Mikhail"]
[WhiteFideId "34281576"]
[BlackFideId "24198900"]
[WhiteElo "2613"]
[BlackElo "2450"]
[Result "1-0"]
[Round "5"]
[TimeControl "180+2"]
[Date "2023.07.25"]
[WhiteClock "0:01:32"]
[BlackClock "0:01:32"]
[Board "105"]

1. d4 {[%clk 0:03:00]}  Nf6 {[%clk 0:03:00]} 2. c4 {[%clk 0:02:59]}  e6 {[%clk 0:02:59]} 3. Nc3 {[%clk 0:02:59]}  d5 {[%clk 0:03:00]} 4. cxd5 {[%clk 0:02:59]}  exd5 {[%clk 0:03:00]} 5. Bg5 {[%clk 0:02:59]}  c6 {[%clk 0:02:58]} 6. e3 {[%clk 0:02:59]}  Bd6 {[%clk 0:02:56]} 7. Bd3 {[%clk 0:02:57]}  h6 {[%clk 0:02:56]} 8. Bh4 {[%clk 0:02:57]}  O-O {[%clk 0:02:52]} 9. Qc2 {[%clk 0:02:55]}  a5 {[%clk 0:02:51]} 10. Nge2 {[%clk 0:02:41]}  Na6 {[%clk 0:02:50]} 11. a3 {[%clk 0:02:41]}  b5 {[%clk 0:02:43]} 12. O-O {[%clk 0:02:38]}  Nc7 {[%clk 0:02:35]} 13. f3 {[%clk 0:02:36]}  Ne6 {[%clk 0:02:26]} 14. Kh1 {[%clk 0:02:29]}  Qc7 {[%clk 0:02:23]} 15. Bxf6 {[%clk 0:02:23]}  gxf6 {[%clk 0:02:24]} 16. f4 {[%clk 0:02:05]}  Ng7 {[%clk 0:02:18]} 17. Rac1 {[%clk 0:02:02]}  Ra7 {[%clk 0:02:10]} 18. e4 {[%clk 0:01:48]}  dxe4 {[%clk 0:02:03]} 19. Nxe4 {[%clk 0:01:42]}  Bb7 {[%clk 0:01:42]} 20. Nxf6+ {[%clk 0:01:36]}  Kh8 {[%clk 0:01:42]} 21. Bxb5 {[%clk 0:01:33]}  Qe7 {[%clk 0:01:32]} 22. Qh7# {[%clk 0:01:32]} 1-0


[Site "https://www.chess.com"]

[Event "Titled Tuesday Blitz July 25 Early 2023"]
[White "NicolaiMaxime"]
[Black "Devaev, Alexander"]
[BlackFideId "4169395"]
[WhiteElo "2609"]
[BlackElo "2448"]
[Result "0-1"]
[Round "5"]
[TimeControl "180+2"]
[Date "2023.07.25"]
[WhiteClock "0:00:35"]
[BlackClock "0:00:45"]
[Board "106"]

1. e4 {[%clk 0:02:59]}  c6 {[%clk 0:02:54]} 2. d4 {[%clk 0:02:58]}  d5 {[%clk 0:02:52]} 3. exd5 {[%clk 0:02:59]}  cxd5 {[%clk 0:02:52]} 4. Bd3 {[%clk 0:03:00]}  Nc6 {[%clk 0:02:50]} 5. c3 {[%clk 0:03:00]}  g6 {[%clk 0:02:49]} 6. h3 {[%clk 0:03:00]}  Bf5 {[%clk 0:02:50]} 7. Qc2 {[%clk 0:02:59]}  e6 {[%clk 0:02:45]} 8. g4 {[%clk 0:02:59]}  Bxd3 {[%clk 0:02:44]} 9. Qxd3 {[%clk 0:03:00]}  h5 {[%clk 0:02:35]} 10. g5 {[%clk 0:02:59]}  Bd6 {[%clk 0:02:29]} 11. f4 {[%clk 0:02:57]}  Nge7 {[%clk 0:02:29]} 12. Ne2 {[%clk 0:02:56]}  Nf5 {[%clk 0:02:25]} 13. Nd2 {[%clk 0:02:55]}  O-O {[%clk 0:02:25]} 14. Nf1 {[%clk 0:02:55]}  Rb8 {[%clk 0:02:22]} 15. Ne3 {[%clk 0:02:50]}  Nce7 {[%clk 0:02:01]} 16. O-O {[%clk 0:02:40]}  b5 {[%clk 0:02:02]} 17. b3 {[%clk 0:02:26]}  Qc7 {[%clk 0:01:57]} 18. Bb2 {[%clk 0:02:24]}  Rfc8 {[%clk 0:01:57]} 19. Rac1 {[%clk 0:02:23]}  a5 {[%clk 0:01:53]} 20. Ba1 {[%clk 0:02:04]}  Qb6 {[%clk 0:01:46]} 21. c4 {[%clk 0:01:58]}  bxc4 {[%clk 0:01:44]} 22. bxc4 {[%clk 0:01:59]}  dxc4 {[%clk 0:01:27]} 23. Nxc4 {[%clk 0:01:57]}  Qa6 {[%clk 0:01:25]} 24. Rfd1 {[%clk 0:01:34]}  Nd5 {[%clk 0:01:26]} 25. Rc2 {[%clk 0:01:06]}  Nb4 {[%clk 0:01:23]} 26. Qc3 {[%clk 0:01:03]}  Nxc2 {[%clk 0:01:00]} 27. d5 {[%clk 0:01:03]}  Nxa1 {[%clk 0:01:01]} 28. dxe6 {[%clk 0:00:58]}  Qxc4 {[%clk 0:00:58]} 29. exf7+ {[%clk 0:00:58]}  Qxf7 {[%clk 0:00:56]} 30. Qxa5 {[%clk 0:00:45]}  Nc2 {[%clk 0:00:49]} 31. Qa4 {[%clk 0:00:40]}  Nce3 {[%clk 0:00:49]} 32. Re1 {[%clk 0:00:39]}  Bc5 {[%clk 0:00:48]} 33. Kh2 {[%clk 0:00:38]}  Ra8 {[%clk 0:00:46]} 34. Qe4 {[%clk 0:00:37]}  Rxa2 {[%clk 0:00:46]} 35. Kh1 {[%clk 0:00:37]}  Re8 {[%clk 0:00:46]} 36. Qc6 {[%clk 0:00:36]}  Qd5+ {[%clk 0:00:46]} 37. Qxd5+ {[%clk 0:00:35]}  Nxd5 {[%clk 0:00:47]} 38. Rb1 {[%clk 0:00:33]}  Rexe2 {[%clk 0:00:45]} 39. Rb8+ {[%clk 0:00:34]}  Bf8 {[%clk 0:00:44]} 40. Rb7 {[%clk 0:00:35]}  Rh2+ {[%clk 0:00:44]} 41. Kg1 {[%clk 0:00:35]}  Rag2+ {[%clk 0:00:44]} 42. Kf1 {[%clk 0:00:35]}  Nde3+ {[%clk 0:00:44]} 43. Ke1 {[%clk 0:00:36]}  Bb4+ {[%clk 0:00:44]} 44. Rxb4 {[%clk 0:00:35]}  Rh1# {[%clk 0:00:45]} 0-1


[Site "https://www.chess.com"]

[Event "Titled Tuesday Blitz July 25 Early 2023"]
[White "Pinero Rodriguez, Carlos Jose"]
[Black "Novikov, Evgenij"]
[WhiteFideId "3901726"]
[BlackFideId "4125380"]
[WhiteElo "2607"]
[BlackElo "2445"]
[Result "1-0"]
[Round "5"]
[TimeControl "180+2"]
[Date "2023.07.25"]
[WhiteClock "0:00:13"]
[BlackClock "0:00:00"]
[Board "107"]

1. b3 {[%clk 0:03:00]}  d5 {[%clk 0:02:53]} 2. Bb2 {[%clk 0:03:00]}  c5 {[%clk 0:02:49]} 3. Nf3 {[%clk 0:03:00]}  Nf6 {[%clk 0:02:42]} 4. e3 {[%clk 0:02:59]}  a6 {[%clk 0:02:37]} 5. c4 {[%clk 0:02:56]}  Nc6 {[%clk 0:02:24]} 6. cxd5 {[%clk 0:02:55]}  Nxd5 {[%clk 0:02:21]} 7. a3 {[%clk 0:02:55]}  e6 {[%clk 0:02:10]} 8. Qc2 {[%clk 0:02:53]}  b6 {[%clk 0:01:59]} 9. d3 {[%clk 0:02:50]}  Bb7 {[%clk 0:01:58]} 10. Nbd2 {[%clk 0:02:49]}  Rc8 {[%clk 0:01:56]} 11. Be2 {[%clk 0:02:49]}  Be7 {[%clk 0:01:49]} 12. Ne4 {[%clk 0:02:45]}  O-O {[%clk 0:01:47]} 13. O-O {[%clk 0:02:45]}  Nf6 {[%clk 0:01:40]} 14. Ned2 {[%clk 0:02:42]}  Qc7 {[%clk 0:01:35]} 15. Rac1 {[%clk 0:02:42]}  Qb8 {[%clk 0:01:33]} 16. Qb1 {[%clk 0:02:40]}  Rfd8 {[%clk 0:01:33]} 17. Rfd1 {[%clk 0:02:39]}  Ne8 {[%clk 0:01:27]} 18. Ne4 {[%clk 0:02:36]}  h6 {[%clk 0:01:21]} 19. Qa1 {[%clk 0:02:24]}  Bf8 {[%clk 0:01:17]} 20. Qb1 {[%clk 0:02:23]}  Nd6 {[%clk 0:01:15]} 21. Ng3 {[%clk 0:02:21]}  Re8 {[%clk 0:01:06]} 22. Nh5 {[%clk 0:02:17]}  e5 {[%clk 0:01:05]} 23. Ng3 {[%clk 0:02:12]}  Rcd8 {[%clk 0:01:02]} 24. Nd2 {[%clk 0:02:08]}  Qa8 {[%clk 0:00:54]} 25. Bf3 {[%clk 0:02:04]}  Na5 {[%clk 0:00:53]} 26. Bxb7 {[%clk 0:02:02]}  Qxb7 {[%clk 0:00:54]} 27. Bc3 {[%clk 0:01:55]}  Nc6 {[%clk 0:00:53]} 28. Qb2 {[%clk 0:01:54]}  Nb5 {[%clk 0:00:52]} 29. Nc4 {[%clk 0:01:46]}  Nxc3 {[%clk 0:00:51]} 30. Qxc3 {[%clk 0:01:47]}  g6 {[%clk 0:00:48]} 31. Qc2 {[%clk 0:01:41]}  Bg7 {[%clk 0:00:47]} 32. Ne2 {[%clk 0:01:38]}  Rd7 {[%clk 0:00:45]} 33. Nb2 {[%clk 0:01:25]}  Red8 {[%clk 0:00:44]} 34. Nc3 {[%clk 0:01:25]}  Ne7 {[%clk 0:00:43]} 35. Nc4 {[%clk 0:01:20]}  Nf5 {[%clk 0:00:43]} 36. Na4 {[%clk 0:01:16]}  Nh4 {[%clk 0:00:41]} 37. f3 {[%clk 0:01:11]}  b5 {[%clk 0:00:34]} 38. Nxc5 {[%clk 0:01:11]}  Qa7 {[%clk 0:00:34]} 39. Nxd7 {[%clk 0:01:09]}  bxc4 {[%clk 0:00:34]} 40. dxc4 {[%clk 0:01:00]}  Rxd7 {[%clk 0:00:31]} 41. Rxd7 {[%clk 0:01:01]}  Qxd7 {[%clk 0:00:32]} 42. c5 {[%clk 0:01:00]}  Nf5 {[%clk 0:00:25]} 43. Kf2 {[%clk 0:00:58]}  Qa7 {[%clk 0:00:18]} 44. b4 {[%clk 0:00:57]}  Bf8 {[%clk 0:00:15]} 45. Rd1 {[%clk 0:00:55]}  a5 {[%clk 0:00:12]} 46. g4 {[%clk 0:00:53]}  Ne7 {[%clk 0:00:11]} 47. Qc4 {[%clk 0:00:48]}  axb4 {[%clk 0:00:10]} 48. axb4 {[%clk 0:00:49]}  Nc6 {[%clk 0:00:10]} 49. b5 {[%clk 0:00:45]}  Na5 {[%clk 0:00:10]} 50. b6 {[%clk 0:00:43]}  Qb7 {[%clk 0:00:03]} 51. Qb5 {[%clk 0:00:41]}  Nc6 {[%clk 0:00:03]} 52. Ra1 {[%clk 0:00:23]}  h5 {[%clk 0:00:02]} 53. gxh5 {[%clk 0:00:22]}  gxh5 {[%clk 0:00:03]} 54. Rg1+ {[%clk 0:00:18]}  Kh8 {[%clk 0:00:03]} 55. Qc4 {[%clk 0:00:16]}  Qd7 {[%clk 0:00:02]} 56. Ke2 {[%clk 0:00:13]}  Bg7 {[%clk 0:00:00]} 57. Rd1 {[%clk 0:00:13]} 1-0


[Site "https://www.chess.com"]

[Event "Titled Tuesday Blitz July 25 Early 2023"]
[White "Agibileg, Uurtsaikh"]
[Black "Bendayan Claros, Aaron"]
[WhiteFideId "4901606"]
[BlackFideId "3803392"]
[WhiteElo "2603"]
[BlackElo "2443"]
[Result "1-0"]
[Round "5"]
[TimeControl "180+2"]
[Date "2023.07.25"]
[WhiteClock "0:01:15"]
[BlackClock "0:00:00"]
[Board "108"]

1. d4 {[%clk 0:03:00]}  d5 {[%clk 0:02:59]} 2. c4 {[%clk 0:03:00]}  e6 {[%clk 0:03:00]} 3. Nc3 {[%clk 0:03:00]}  c6 {[%clk 0:03:00]} 4. Nf3 {[%clk 0:03:00]}  f5 {[%clk 0:03:00]} 5. g3 {[%clk 0:02:57]}  Bd6 {[%clk 0:02:59]} 6. Bg2 {[%clk 0:02:57]}  Nf6 {[%clk 0:02:59]} 7. O-O {[%clk 0:02:57]}  Ne4 {[%clk 0:02:59]} 8. Qc2 {[%clk 0:02:55]}  O-O {[%clk 0:02:58]} 9. Bf4 {[%clk 0:02:56]}  Qc7 {[%clk 0:02:57]} 10. e3 {[%clk 0:02:53]}  Nd7 {[%clk 0:02:33]} 11. c5 {[%clk 0:02:53]}  Bxf4 {[%clk 0:02:33]} 12. gxf4 {[%clk 0:02:53]}  Kh8 {[%clk 0:02:32]} 13. b4 {[%clk 0:02:53]}  Qd8 {[%clk 0:02:29]} 14. a4 {[%clk 0:02:51]}  h6 {[%clk 0:02:26]} 15. b5 {[%clk 0:02:50]}  g6 {[%clk 0:02:26]} 16. Rfb1 {[%clk 0:02:46]}  g5 {[%clk 0:02:27]} 17. fxg5 {[%clk 0:02:41]}  hxg5 {[%clk 0:02:27]} 18. Nxe4 {[%clk 0:02:38]}  fxe4 {[%clk 0:02:24]} 19. Nd2 {[%clk 0:02:38]}  Qf6 {[%clk 0:02:19]} 20. Nf1 {[%clk 0:02:39]}  e5 {[%clk 0:02:02]} 21. Rd1 {[%clk 0:02:25]}  exd4 {[%clk 0:02:02]} 22. exd4 {[%clk 0:02:26]}  Qh6 {[%clk 0:01:57]} 23. Ne3 {[%clk 0:02:24]}  Nf6 {[%clk 0:01:56]} 24. bxc6 {[%clk 0:02:17]}  bxc6 {[%clk 0:01:56]} 25. Qe2 {[%clk 0:02:13]}  Qh4 {[%clk 0:01:52]} 26. f3 {[%clk 0:02:05]}  exf3 {[%clk 0:01:46]} 27. Qxf3 {[%clk 0:02:05]}  Bg4 {[%clk 0:01:30]} 28. Nxg4 {[%clk 0:02:05]}  Nxg4 {[%clk 0:01:29]} 29. Qg3 {[%clk 0:02:05]}  Qxg3 {[%clk 0:01:23]} 30. hxg3 {[%clk 0:02:06]}  Rab8 {[%clk 0:00:54]} 31. Rab1 {[%clk 0:02:06]}  Ne3 {[%clk 0:00:51]} 32. Re1 {[%clk 0:02:00]}  Nc2 {[%clk 0:00:31]} 33. Rxb8 {[%clk 0:01:33]}  Rxb8 {[%clk 0:00:32]} 34. Re7 {[%clk 0:01:34]}  Nxd4 {[%clk 0:00:27]} 35. Rxa7 {[%clk 0:01:34]}  Nb3 {[%clk 0:00:25]} 36. Rc7 {[%clk 0:01:30]}  Nxc5 {[%clk 0:00:25]} 37. Rxc6 {[%clk 0:01:30]}  Nxa4 {[%clk 0:00:24]} 38. Bxd5 {[%clk 0:01:31]}  Kg7 {[%clk 0:00:19]} 39. Kg2 {[%clk 0:01:28]}  Nb6 {[%clk 0:00:17]} 40. Be4 {[%clk 0:01:28]}  Kf7 {[%clk 0:00:12]} 41. Kf3 {[%clk 0:01:26]}  Nd7 {[%clk 0:00:11]} 42. Bd5+ {[%clk 0:01:24]}  Ke7 {[%clk 0:00:09]} 43. Re6+ {[%clk 0:01:24]}  Kd8 {[%clk 0:00:09]} 44. Kg4 {[%clk 0:01:22]}  Rb5 {[%clk 0:00:08]} 45. Be4 {[%clk 0:01:20]}  Rc5 {[%clk 0:00:03]} 46. Bf5 {[%clk 0:01:20]}  Nf8 {[%clk 0:00:02]} 47. Ra6 {[%clk 0:01:16]}  Ke7 {[%clk 0:00:00]} 48. Kxg5 {[%clk 0:01:15]} 1-0


[Site "https://www.chess.com"]